fUSD/lending_fUSD_20240523
["ID","MTS","AMOUNT","RATE_DAILY","PERIOD"]
[327810473,1716498651435,-500.0,0.00024657,2]
[327810475,1716498651445,-809.83,0.00024657,2]
[327810477,1716498651454,-1781.63,0.00024657,2]
[327810479,1716498651464,-500.0,0.00024657,2]
[327810481,1716498651473,-500.0,0.00024657,2]
[327810483,1716498651483,-500.0,0.00024657,2]
[327810485,1716498651492,-262.8,0.00024657,2]
[327810487,1716498651501,-372.28782774,0.00024657,2]
[327810489,1716498651509,-761.22,0.00024657,2]
[327810491,1716498651521,-500.0,0.00024657,2]
[327810493,1716498651530,-150.0,0.00024683,2]
[327810495,1716498651540,-150.0,0.00024712,2]
[327810497,1716498651549,-150.0,0.00024712,2]
[327810499,1716498651560,-150.0,0.00024731,2]
[327810501,1716498651570,-150.0,0.00024746,2]
[327810503,1716498651579,-150.0,0.00024749,2]
[327810505,1716498651589,-628.03197919,0.0002475,2]
[327810507,1716498651598,-1500.0,0.00024751,2]
[327810509,1716498651607,-200.0,0.000248,2]
[327810511,1716498651616,-1000.0,0.000248,2]
[327810513,1716498651626,-500.0,0.000248,2]
[327810515,1716498651636,-200.0,0.000248,2]
[327810517,1716498651645,-176.12813558,0.00024801,2]
[327810519,1716498651654,-150.0,0.00024816,2]
[327810521,1716498651664,-300.0,0.00024833,2]
[327810523,1716498651678,-402.93189987,0.00024842,2]
[327810525,1716498651687,-254.88619318,0.00024846,2]
[327810527,1716498651696,-150.0,0.00024867,2]
[327810529,1716498651705,-197.06810013,0.00024877,2]
[327810531,1716498651715,-150.0,0.00024882,2]
[327810533,1716498651724,-300.0,0.00024894,2]
[327810536,1716498651733,-150.0,0.00024898,2]
[327810538,1716498651743,-300.0,0.00024899,2]
[327810539,1716498651752,-304.43736732,0.000249,2]
[327810542,1716498651762,-1500.0,0.000249,2]
[327810543,1716498651771,-9845.07855006,0.000249,2]
[327810545,1716498651781,-750.68249998,0.000249,2]
[327810547,1716498651790,-2437.36938898,0.000249,2]
[327810550,1716498651799,-163.2024944,0.00024901,2]
[327810552,1716498651808,-150.0,0.00024902,2]
[327810554,1716498651818,-1183.37776132,0.0002492,2]
[327810555,1716498651827,-1500.0,0.00024927,2]
[327810558,1716498651836,-150.0,0.00024928,2]
[327810560,1716498651845,-500.0,0.00024931,2]
[327810562,1716498651855,-500.0,0.00024931,2]
[327810564,1716498651864,-1595.55,0.00024931,2]
[327810566,1716498651873,-500.0,0.00024931,2]
[327810568,1716498651883,-809.83,0.00024931,2]
[327810570,1716498651892,-1781.63,0.00024931,2]
[327810572,1716498651902,-500.0,0.00024931,2]
[327810574,1716498651911,-500.0,0.00024931,2]
[327810576,1716498651924,-500.0,0.00024931,2]
[327810578,1716498651934,-761.22,0.00024931,2]
[327810580,1716498651942,-490.61306777,0.00024931,2]
[327810582,1716498651951,-30540.83561085,0.00024945,2]
[327810584,1716498651961,-64596.5018441,0.00024945,2]
[327810586,1716498651970,-150.0,0.00024953,2]
[327810588,1716498651980,-150.0,0.00024961,2]
[327810590,1716498651989,-150.0,0.00024961,2]
[327810592,1716498651998,-427.9173297,0.00024963,2]
[327810594,1716498652008,-18000.0,0.0002498,4]
[327810596,1716498652017,-7728.5738807,0.00024985,2]
[327810598,1716498652026,-32846.6248888,0.00024985,2]
[327810600,1716498652036,-1998.9446917,0.00024985,2]
[327810602,1716498652045,-151.0,0.00024985,7]
[327810604,1716498652055,-150.0,0.00024991,2]
[327810606,1716498652064,-208.21094231,0.00024999,2]
[327810607,1716498652073,-5874.5069088,0.00024999,2]
[327810609,1716498652082,-151.931528,0.00024999,7]
[327810611,1716498652092,-151.0,0.00024999,7]
[327810613,1716498652101,-151.0,0.00024999,7]
[327810616,1716498652111,-151.0,0.00024999,7]
[327810617,1716498652121,-151.47148255,0.00024999,2]
[327810619,1716498652131,-323594.09346217,0.00025,15]
[327810622,1716498652140,-1101744.64794337,0.00025,2]
[327810624,1716498652150,-155.0,0.00025,2]
[327810626,1716498652160,-160.0,0.00025,2]
[327810627,1716498652174,-2000.0,0.00025,2]
[327810629,1716498652183,-155.0,0.00025,2]
[327810632,1716498652193,-926.99561138,0.00025,2]
[327810634,1716498652202,-5000.0,0.00025,7]
[327810635,1716498652211,-224.3459268,0.00025,2]
[327810638,1716498652222,-155.0,0.00025,2]
[327810640,1716498652232,-155.0,0.00025,2]
[327810641,1716498652241,-486.0,0.00025,8]
[327810644,1716498652251,-344.0,0.00025,2]
[327810646,1716498652261,-344.0,0.00025,2]
[327810647,1716498652271,-688.0,0.00025,2]
[327810649,1716498652280,-688.0,0.00025,2]
[327810651,1716498652290,-189.0,0.00025,8]
[327810653,1716498652299,-2227.50179135,0.00025,2]
[327810655,1716498652308,-1000.0,0.00025,4]
[327810657,1716498652318,-1000.0,0.00025,3]
[327810659,1716498652331,-500.0,0.00025,2]
[327810661,1716498652340,-3151.38328672,0.00025,2]
[327810663,1716498652351,-155.20845721,0.00025,2]
[327810665,1716498652360,-155.48830527,0.00025,2]
[327810667,1716498652375,-344.0,0.00025,2]
[327810669,1716498652384,-151.0,0.00025,2]
[327810671,1716498652394,-9553.67690754,0.00025,2]
[327810673,1716498652403,-850.0,0.00025,2]
[327810675,1716498652412,-150.0,0.00025,2]
[327810677,1716498652427,-2930.49283972,0.00025,2]
[327810679,1716498652436,-151.0,0.00025,7]
[327810682,1716498652447,-300.0,0.00025,7]
[327810684,1716498652456,-151.0,0.00025,7]
[327810685,1716498652466,-3931.209431,0.00025,2]
[327810687,1716498652476,-151.0,0.00025,7]
[327810689,1716498652485,-152.698414,0.00025,7]
[327810692,1716498652495,-151.0,0.00025,7]
[327810694,1716498652504,-151.0,0.00025,7]
[327810696,1716498652514,-151.0,0.00025,7]
[327810697,1716498652524,-151.0,0.00025,7]
[327810699,1716498652533,-151.0,0.00025,7]
[327810701,1716498652543,-151.0,0.00025,7]
[327810703,1716498652552,-151.0,0.00025,7]
[327810705,1716498652561,-151.0,0.00025,7]
[327810707,1716498652570,-1500.0,0.00025,2]
[327810709,1716498652579,-151.0,0.00025,7]
[327810711,1716498652588,-151.0,0.00025,7]
[327810713,1716498652597,-165.437223,0.00025,7]
[327810715,1716498652606,-150.0,0.00025,4]
[327810717,1716498652616,-165.437223,0.00025,7]
[327810719,1716498652625,-241.83663,0.00025,7]
[327810721,1716498652636,-4905.11,0.00025001,2]
[327810723,1716498652645,-152.16150963,0.00025002,2]
[327810725,1716498652654,-162.67573834,0.00025005,2]
[327810727,1716498652664,-199.70820488,0.00025023,2]
[327810729,1716498652678,-155.66318784,0.00025023,2]
[327810731,1716498652686,-155.0,0.00025023,2]
[327810733,1716498652696,-176.30351319,0.00025023,2]
[327810735,1716498652705,-200.48668573,0.00025023,2]
[327810737,1716498652714,-528.98539506,0.00025023,2]
[327810739,1716498652723,-2813.98016787,0.00025025,2]
[327810741,1716498652732,-300.52248075,0.00025025,2]
[327810743,1716498652741,-150.0,0.00025043,2]
[327810744,1716498652750,-150.0,0.00025043,2]
[327810746,1716498652759,-150.0,0.00025043,2]
[327810748,1716498652768,-155.19686421,0.0002509,2]
[327810750,1716498652777,-12489.18500463,0.00025097,2]
[327810751,1716498652787,-10000.0,0.00025105,2]
[327810753,1716498652796,-500.0,0.00025186,2]
[327810755,1716498652805,-500.0,0.00025205,2]
[327810757,1716498652815,-500.0,0.00025205,2]
[327810759,1716498652824,-1595.55,0.00025205,2]
[327810761,1716498652834,-500.0,0.00025205,2]
[327810763,1716498652844,-809.83,0.00025205,2]
[327810765,1716498652854,-1781.63,0.00025205,2]
[327810767,1716498652863,-344.98803619,0.00025205,2]
[327810769,1716498652872,-500.0,0.00025205,2]
[327810771,1716498652882,-500.0,0.00025205,2]
[327810773,1716498652891,-761.22,0.00025205,2]
[327810775,1716498652900,-1674.01527559,0.00025261,5]
[327810777,1716498652909,-155.23279894,0.0002529,2]
[327810779,1716498652922,-2083.2,0.000253,2]
[327810781,1716498652931,-151.0,0.000253,7]
[327810783,1716498652941,-2008.41,0.00025313,2]
[327810785,1716498652950,-155.23279894,0.00025314,2]
[327810787,1716498652960,-163.2024944,0.00025345,2]
[327810789,1716498652969,-1285.28,0.000254,2]
[327810791,1716498652978,-167.49601557,0.0002541,2]
[327810793,1716498652987,-155.19686421,0.00025435,2]
[327810795,1716498652997,-568.80107653,0.0002546,2]
[327810797,1716498653006,-246.67561178,0.0002547,2]
[327810799,1716498653015,-596.43777134,0.00025479,2]
[327810801,1716498653024,-500.0,0.00025479,2]
[327810802,1716498653033,-1595.55,0.00025479,2]
[327810804,1716498653042,-500.0,0.00025479,2]
[327810806,1716498653051,-809.83,0.00025479,2]
[327810808,1716498653061,-1781.63,0.00025479,2]
[327810810,1716498653072,-500.0,0.00025479,2]
[327810812,1716498653082,-400.39,0.00025479,2]
[327810814,1716498653091,-761.22,0.00025479,2]
[327810817,1716498653103,-1000.0,0.000255,5]
[327810818,1716498653112,-2000.0,0.000255,2]
[327810820,1716498653122,-2000.0,0.000255,2]
[327810822,1716498653132,-150.0,0.000255,4]
[327810824,1716498653142,-156.12533322,0.00025569,10]
[327810826,1716498653151,-257.31386,0.00025569,7]
[327810843,1716498653317,-157.527412,0.00025569,7]
[327810846,1716498653331,-189.6673363,0.00025569,7]
[327810848,1716498653340,-151.0,0.00025569,7]
[327810850,1716498653350,-816456.05826538,0.0002557,2]
[327810851,1716498653360,-151.0,0.0002557,7]
[327810854,1716498653372,-151.0,0.0002557,7]
[327810856,1716498653382,-151.0,0.0002557,7]
[327810858,1716498653392,-151.0,0.0002557,7]
[327810860,1716498653402,-151.0,0.0002557,7]
[327810862,1716498653412,-288.971852,0.0002557,7]
[327810863,1716498653425,-151.0,0.0002557,7]
[327810865,1716498653434,-276.86861,0.0002557,7]
[327810868,1716498653444,-151.0,0.0002557,7]
[327810869,1716498653454,-151.0,0.0002557,7]
[327810871,1716498653463,-165.437223,0.0002557,7]
[327810873,1716498653473,-165.437223,0.0002557,7]
[327810876,1716498653483,-165.437223,0.0002557,7]
[327810878,1716498653493,-165.437223,0.0002557,7]
[327810879,1716498653503,-8442.4490457,0.00025582,2]
[327810882,1716498653512,-39760.8594808,0.00025582,2]
[327810883,1716498653521,-2394.5504872,0.00025582,2]
[327810885,1716498653531,-1442221.46,0.000256,5]
[327810888,1716498653540,-151.0,0.000256,7]
[327810889,1716498653550,-171.851797,0.000256,7]
[327810891,1716498653560,-151.0,0.000256,7]
[327810894,1716498653569,-151.0,0.000256,7]
[327810896,1716498653580,-151.0,0.000256,7]
[327810897,1716498653589,-165.437223,0.000256,7]
[327810899,1716498653599,-165.437223,0.000256,7]
[327810900,1716498653608,-155.19686421,0.00025604,2]
[327810901,1716498653617,-155.19686421,0.00025617,2]
[327810902,1716498653626,-2790.1562827,0.00025717,2]
[327810903,1716498653635,-9156.3242106,0.00025735,2]
[327810904,1716498653644,-46675.0940728,0.00025735,2]
[327810905,1716498653653,-553.17665017,0.00025753,2]
[327810906,1716498653662,-1595.55,0.00025753,2]
[327810907,1716498653675,-500.0,0.00025753,2]
[327810908,1716498653684,-809.83,0.00025753,2]
[327810909,1716498653693,-1781.63,0.00025753,2]
[327810910,1716498653703,-500.0,0.00025753,2]
[327810911,1716498653712,-761.22,0.00025753,2]
[327810912,1716498653722,-159.70876585,0.00025778,2]
[327810913,1716498653731,-435.64,0.0002589,2]
[327810914,1716498653740,-2076.70537357,0.00025892,2]
[327810915,1716498653749,-155.19686421,0.00025904,2]
[327810917,1716498653759,-152.16150963,0.00025922,2]
[327810919,1716498653770,-424.0,0.00025979,2]
[327810921,1716498653780,-321.38073273,0.00025992,2]
[327810923,1716498653789,-12489.18500463,0.00025992,2]
[327810925,1716498653799,-1175313.09,0.00026,5]
[327810927,1716498653809,-311.21771014,0.00026,2]
[327810929,1716498653819,-23445.03544886,0.00026,5]
[327810931,1716498653829,-2000.0,0.00026,2]
[327810933,1716498653841,-1611.89091236,0.00026,2]
[327810935,1716498653853,-60000.0,0.00026,5]
[327810937,1716498653865,-1115.0,0.00026,2]
[327810939,1716498653876,-151.0,0.00026,7]
[327810941,1716498653887,-151.0,0.00026,7]
[327810944,1716498653898,-165.437223,0.00026,7]
[327810946,1716498653909,-150.0,0.00026,4]
[327810948,1716498653924,-165.437223,0.00026,7]
[327810950,1716498653934,-161.44222683,0.00026003,2]
[327810952,1716498653944,-163.2024944,0.00026012,2]
[327810954,1716498653954,-1595.55,0.00026027,2]
[327810956,1716498653964,-500.0,0.00026027,2]
[327810958,1716498653973,-809.83,0.00026027,2]
[327810960,1716498653983,-1781.63,0.00026027,2]
[327810962,1716498653994,-500.0,0.00026027,2]
[327810964,1716498654005,-761.22,0.00026027,2]
[327810966,1716498654015,-166.66666668,0.0002603,2]
[327810968,1716498654026,-150.0,0.00026079,2]
[327810970,1716498654036,-155.53,0.00026086,2]
[327810972,1716498654046,-9870.1993756,0.00026282,2]
[327810974,1716498654057,-53589.3286648,0.00026282,2]
[327810976,1716498654067,-3185.7620783,0.00026282,2]
[327810978,1716498654079,-31959.1227842,0.000263,2]
[327810980,1716498654090,-2083.2,0.000263,2]
[327810982,1716498654100,-1595.55,0.00026301,2]
[327810984,1716498654110,-500.0,0.00026301,2]
[327810986,1716498654120,-809.83,0.00026301,2]
[327810988,1716498654131,-1781.63,0.00026301,2]
[327810990,1716498654141,-500.0,0.00026301,2]
[327810992,1716498654151,-761.22,0.00026301,2]
[327810994,1716498654162,-152.16150963,0.00026338,2]
[327810996,1716498654178,-1285.28,0.000264,2]
[327810999,1716498654189,-163.2024944,0.00026416,2]
[327811001,1716498654200,-304.43736732,0.00026423,2]
[327811003,1716498654211,-151.0,0.00026424,30]
[327811005,1716498654222,-30540.83561085,0.00026461,2]
[327811007,1716498654232,-64596.5018441,0.00026461,2]
[327811008,1716498654241,-1000.0,0.000265,5]
[327811010,1716498654252,-2000.0,0.000265,2]
[327811013,1716498654262,-2000.0,0.000265,2]
[327811014,1716498654272,-398.895705,0.000265,2]
[327811017,1716498654283,-150.0,0.000265,5]
[327811018,1716498654293,-163.2024944,0.00026503,2]
[327811020,1716498654302,-20000.0,0.00026549,2]
[327811022,1716498654312,-150.0,0.00026564,2]
[327811025,1716498654324,-150.0,0.00026564,2]
[327811026,1716498654335,-150.0,0.00026564,2]
[327811028,1716498654346,-150.0,0.00026564,2]
[327811030,1716498654357,-150.0,0.00026564,2]
[327811032,1716498654368,-150.0,0.00026564,2]
[327811034,1716498654384,-150.0,0.00026564,2]
[327811036,1716498654396,-150.0,0.00026564,2]
[327811038,1716498654407,-159.70876585,0.00026571,2]
[327811040,1716498654426,-1595.55,0.00026575,2]
[327811042,1716498654438,-628.67108923,0.00026575,2]
[327811044,1716498654452,-809.83,0.00026575,2]
[327811047,1716498654467,-1781.63,0.00026575,2]
[327811049,1716498654479,-500.0,0.00026575,2]
[327811050,1716498654492,-761.22,0.00026575,2]
[327811053,1716498654504,-500.0,0.00026662,2]
[327811055,1716498654516,-500.0,0.00026662,2]
[327811057,1716498654528,-500.0,0.00026662,2]
[327811059,1716498654540,-500.0,0.00026662,2]
[327811061,1716498654551,-500.0,0.00026662,2]
[327811063,1716498654563,-500.0,0.00026662,2]
[327811064,1716498654577,-500.0,0.00026662,2]
[327811066,1716498654590,-500.0,0.00026662,2]
[327811068,1716498654602,-500.0,0.00026662,2]
[327811070,1716498654614,-500.0,0.00026662,2]
[327811072,1716498654626,-500.0,0.00026662,2]
[327811075,1716498654638,-500.0,0.00026662,2]
[327811077,1716498654650,-500.0,0.00026662,2]
[327811078,1716498654661,-500.0,0.00026662,2]
[327811081,1716498654682,-151.0,0.0002667,10]
[327811082,1716498654694,-1225.0,0.00026688,2]
[327811084,1716498654704,-1263.0,0.00026688,2]
[327811086,1716498654718,-150.0,0.00026688,2]
[327811088,1716498654729,-16644.14796529,0.000267,4]
[327811090,1716498654740,-5760.0,0.00026715,2]
[327811092,1716498654751,-5135.0,0.00026715,2]
[327811095,1716498654763,-289.0,0.00026715,2]
[327811096,1716498654774,-1464.0,0.00026715,2]
[327811098,1716498654785,-37904.0,0.00026715,2]
[327811100,1716498654796,-1000.0,0.00026789,14]
[327811103,1716498654807,-1595.55,0.00026849,2]
[327811105,1716498654817,-809.83,0.00026849,2]
[327811106,1716498654828,-1781.63,0.00026849,2]
[327811108,1716498654838,-500.0,0.00026849,2]
[327811110,1716498654850,-761.22,0.00026849,2]
[327811113,1716498654861,-12489.18500463,0.00026888,2]
[327811114,1716498654872,-224.0,0.000269,2]
[327811117,1716498654883,-944.0,0.000269,2]
[327811118,1716498654894,-752.4,0.000269,2]
[327811120,1716498654905,-354.0,0.000269,2]
[327811122,1716498654917,-1000.0,0.000269,2]
[327811124,1716498654935,-1088.12,0.00026919,2]
[327811126,1716498654945,-151.0,0.00026964,7]
[327811128,1716498654955,-503.27797043,0.0002698,2]
[327811130,1716498654965,-159.70876585,0.00026999,2]
[327811132,1716498654975,-868.0,0.00027,2]
[327811135,1716498654986,-2003.78003139,0.00027,2]
[327811136,1716498654996,-49794.02104236,0.00027,3]
[327811138,1716498655006,-176.10788767,0.00027,4]
[327811140,1716498655016,-190536.66527687,0.00027,2]
[327811142,1716498655026,-2000.0,0.00027,2]
[327811144,1716498655036,-6942.84950256,0.00027,4]
[327811146,1716498655046,-14858.4048188,0.00027,3]
[327811148,1716498655056,-60000.0,0.00027,5]
[327811150,1716498655066,-900.0,0.00027,2]
[327811152,1716498655077,-2000.0,0.00027,2]
[327811154,1716498655087,-180.726994,0.00027,7]
[327811156,1716498655096,-151.0,0.00027,7]
[327811158,1716498655106,-165.437223,0.00027,7]
[327811160,1716498655116,-150.0,0.00027,5]
[327811162,1716498655126,-165.437223,0.00027,7]
[327811164,1716498655136,-3901.465715,0.0002701,2]
[327811166,1716498655146,-5800.0,0.00027022,2]
[327811168,1716498655156,-576.0,0.0002706,2]
[327811170,1716498655173,-172.1,0.00027068,30]
[327811172,1716498655183,-949.41677103,0.0002707,2]
[327811174,1716498655194,-1264.38946898,0.0002707,2]
[327811176,1716498655204,-500.0,0.0002707,2]
[327811178,1716498655215,-1000.0,0.0002707,2]
[327811180,1716498655225,-500.0,0.0002707,2]
[327811182,1716498655234,-955.56684863,0.00027075,2]
[327811184,1716498655245,-2000.0,0.000271,4]
[327811186,1716498655255,-301.02,0.0002711,2]
[327811188,1716498655266,-1595.55,0.00027123,2]
[327811190,1716498655276,-809.83,0.00027123,2]
[327811193,1716498655287,-1781.63,0.00027123,2]
[327811195,1716498655297,-500.0,0.00027123,2]
[327811197,1716498655308,-761.22,0.00027123,2]
[327811199,1716498655318,-3442.11,0.00027123,2]
[327811201,1716498655331,-2076.70537357,0.00027188,2]
[327811203,1716498655341,-2000.0,0.000273,4]
[327811205,1716498655352,-2083.2,0.000273,2]
[327811207,1716498655362,-163.2024944,0.0002735,2]
[327811209,1716498655378,-500.0,0.0002737,2]
[327811211,1716498655389,-1000.0,0.0002737,2]
[327811213,1716498655399,-809.85137059,0.0002739,2]
[327811215,1716498655410,-300.0,0.00027397,2]
[327811216,1716498655425,-1000.0,0.00027397,2]
[327811218,1716498655435,-336.59274828,0.00027397,2]
[327811220,1716498655445,-1338.7207753,0.00027397,2]
[327811222,1716498655456,-1595.55,0.00027397,2]
[327811224,1716498655466,-809.83,0.00027397,2]
[327811226,1716498655476,-1781.63,0.00027397,2]
[327811228,1716498655486,-500.0,0.00027397,2]
[327811230,1716498655496,-761.22,0.00027397,2]
[327811233,1716498655506,-389.01943546,0.00027397,2]
[327811234,1716498655516,-65971.44,0.00027397,2]
[327811237,1716498655527,-310.694459,0.00027397,7]
[327811239,1716498655537,-310.694459,0.00027397,7]
[327811240,1716498655547,-310.694459,0.00027397,7]
[327811242,1716498655557,-310.694459,0.00027397,7]
[327811244,1716498655567,-310.694459,0.00027397,7]
[327811246,1716498655576,-310.694459,0.00027397,7]
[327811248,1716498655586,-310.694459,0.00027397,7]
[327811250,1716498655596,-310.694459,0.00027397,7]
[327811252,1716498655606,-310.694459,0.00027397,7]
[327811254,1716498655615,-310.694459,0.00027397,7]
[327811256,1716498655625,-310.694459,0.00027397,7]
[327811258,1716498655635,-310.694459,0.00027397,7]
[327811260,1716498655644,-310.694459,0.00027397,7]
[327811262,1716498655654,-310.694459,0.00027397,7]
[327811264,1716498655663,-153.977743,0.00027397,7]
[327811266,1716498655677,-151.0,0.00027397,7]
[327811268,1716498655686,-151.0,0.00027397,7]
[327811270,1716498655696,-151.0,0.00027397,7]
[327811272,1716498655706,-151.0,0.00027397,7]
[327811275,1716498655716,-151.0,0.00027397,7]
[327811277,1716498655725,-151.0,0.00027397,7]
[327811278,1716498655734,-151.0,0.00027397,7]
[327811280,1716498655744,-270.48,0.00027397,7]
[327811283,1716498655753,-235.65624,0.00027397,7]
[327811284,1716498655762,-412.980469,0.00027397,7]
[327811287,1716498655772,-412.980469,0.00027397,7]
[327811289,1716498655782,-412.980469,0.00027397,7]
[327811290,1716498655791,-412.980469,0.00027397,7]
[327811292,1716498655801,-412.980469,0.00027397,7]
[327811294,1716498655810,-412.980469,0.00027397,7]
[327811296,1716498655820,-412.980469,0.00027397,7]
[327811298,1716498655830,-412.980469,0.00027397,7]
[327811300,1716498655839,-412.980469,0.00027397,7]
[327811302,1716498655848,-412.980469,0.00027397,7]
[327811309,1716498655905,-412.980469,0.00027397,7]
[327811311,1716498655915,-412.980469,0.00027397,7]
[327811313,1716498655929,-6680.85459,0.00027397,3]
[327811315,1716498655939,-151.0,0.00027397,7]
[327811317,1716498655949,-151.0,0.00027397,7]
[327811319,1716498655958,-151.0,0.00027397,7]
[327811321,1716498655968,-151.0,0.00027397,7]
[327811323,1716498655977,-151.0,0.00027397,7]
[327811325,1716498655987,-151.0,0.00027397,7]
[327811327,1716498655996,-151.0,0.00027397,7]
[327811329,1716498656007,-151.0,0.00027397,7]
[327811331,1716498656016,-151.0,0.00027397,7]
[327811333,1716498656026,-151.0,0.00027397,7]
[327811335,1716498656035,-214.240319,0.00027397,7]
[327811337,1716498656045,-16887.76038041,0.000274,3]
[327811339,1716498656054,-1285.28,0.000274,2]
[327811341,1716498656063,-3159.15,0.000274,2]
[327811343,1716498656073,-3159.15,0.000274,2]
[327811345,1716498656082,-3159.15,0.000274,2]
[327811347,1716498656092,-3159.15,0.000274,2]
[327811349,1716498656101,-3159.15,0.000274,2]
[327811351,1716498656111,-3159.15,0.000274,2]
[327811353,1716498656121,-3159.15,0.000274,2]
[327811355,1716498656134,-3159.15,0.000274,2]
[327811357,1716498656147,-3159.15,0.000274,2]
[327811359,1716498656156,-155.19686421,0.00027415,2]
[327811361,1716498656170,-500.0,0.00027425,6]
[327811363,1716498656180,-500.0,0.00027425,6]
[327811365,1716498656190,-500.0,0.00027425,6]
[327811367,1716498656200,-500.0,0.00027425,6]
[327811369,1716498656209,-500.0,0.00027425,6]
[327811371,1716498656219,-500.0,0.00027425,6]
[327811373,1716498656228,-500.0,0.00027425,6]
[327811375,1716498656238,-500.0,0.00027425,6]
[327811376,1716498656247,-500.0,0.00027425,6]
[327811378,1716498656256,-500.0,0.00027425,6]
[327811380,1716498656265,-500.0,0.00027425,6]
[327811381,1716498656275,-500.0,0.00027425,6]
[327811382,1716498656284,-500.0,0.00027425,6]
[327811383,1716498656294,-500.0,0.00027425,6]
[327811384,1716498656303,-500.0,0.00027425,6]
[327811385,1716498656312,-500.0,0.00027425,6]
[327811386,1716498656322,-500.0,0.00027425,6]
[327811387,1716498656335,-500.0,0.00027425,6]
[327811388,1716498656345,-505.0,0.00027425,6]
[327811389,1716498656355,-500.0,0.00027425,6]
[327811390,1716498656364,-500.0,0.00027425,6]
[327811392,1716498656379,-500.0,0.00027425,6]
[327811393,1716498656389,-500.0,0.00027425,6]
[327811395,1716498656399,-500.0,0.00027425,6]
[327811397,1716498656410,-562.68704763,0.000275,2]
[327811399,1716498656426,-500.0,0.000275,2]
[327811402,1716498656436,-500.0,0.000275,2]
[327811404,1716498656447,-500.0,0.000275,2]
[327811406,1716498656458,-500.0,0.000275,2]
[327811408,1716498656467,-500.0,0.000275,2]
[327811410,1716498656478,-500.0,0.000275,2]
[327811412,1716498656487,-507.34,0.000275,2]
[327811413,1716498656497,-2000.0,0.000275,2]
[327811415,1716498656506,-2000.0,0.000275,2]
[327811417,1716498656516,-500.0,0.000275,2]
[327811419,1716498656525,-500.0,0.000275,2]
[327811421,1716498656534,-500.0,0.000275,2]
[327811423,1716498656543,-500.0,0.000275,2]
[327811425,1716498656553,-500.0,0.000275,2]
[327811427,1716498656562,-500.0,0.000275,2]
[327811429,1716498656570,-500.0,0.000275,2]
[327811431,1716498656579,-500.0,0.000275,2]
[327811433,1716498656589,-500.0,0.000275,2]
[327811435,1716498656598,-500.0,0.000275,2]
[327811437,1716498656608,-500.0,0.000275,2]
[327811439,1716498656617,-500.0,0.000275,2]
[327811441,1716498656626,-500.0,0.000275,2]
[327811443,1716498656635,-500.0,0.000275,2]
[327811445,1716498656645,-500.0,0.000275,2]
[327811447,1716498656654,-639.0,0.000275,2]
[327811449,1716498656663,-500.0,0.000275,2]
[327811451,1716498656678,-500.0,0.000275,2]
[327811453,1716498656687,-500.0,0.000275,2]
[327811455,1716498656696,-500.0,0.000275,2]
[327811457,1716498656705,-500.0,0.000275,2]
[327811459,1716498656714,-500.0,0.000275,2]
[327811461,1716498656722,-500.0,0.000275,2]